[Event "*** Titled Tuesday Blitz"]
[Site "Chess.com"]
[Date "2020.11.10"]
[Round "6"]
[White "KetiGrant"]
[Black "Orest_Vovk"]
[Result "0-1"]
[WhiteElo "2409"]
[BlackElo "2585"]
[TimeControl "180+1"]
[EndTime "11:09:59 PST"]
[Termination "Orest_Vovk won on time"]

1. e4 {[%clk 0:03:00.9]} 1... Nc6 {[%clk 0:02:59.2]} 2. Nf3 {[%clk 0:02:56.3]}
2... d5 {[%clk 0:02:58.7]} 3. exd5 {[%clk 0:02:55]} 3... Qxd5 {[%clk 0:02:59.6]}
4. Nc3 {[%clk 0:02:52.6]} 4... Qa5 {[%clk 0:02:58.9]} 5. d4 {[%clk 0:02:51.5]}
5... Bg4 {[%clk 0:02:56.5]} 6. h3 {[%clk 0:02:34.2]} 6... Bxf3 {[%clk
0:02:55.7]} 7. Qxf3 {[%clk 0:02:33.9]} 7... O-O-O {[%clk 0:02:56]} 8. Bd3 {[%clk
0:02:22.6]} 8... e5 {[%clk 0:02:41.7]} 9. dxe5 {[%clk 0:02:08.7]} 9... Qxe5+
{[%clk 0:02:19.7]} 10. Be3 {[%clk 0:02:05.3]} 10... Nf6 {[%clk 0:02:14.5]} 11.
O-O {[%clk 0:02:00.7]} 11... Bd6 {[%clk 0:02:09.7]} 12. g3 {[%clk 0:02:00]}
12... Nd4 {[%clk 0:01:59.3]} 13. Qg2 {[%clk 0:01:46.1]} 13... Nf5 {[%clk
0:01:44.2]} 14. Bxa7 {[%clk 0:01:25.1]} 14... Qa5 {[%clk 0:01:30.1]} 15. Nb5
{[%clk 0:01:13.8]} 15... Ne7 {[%clk 0:01:14.3]} 16. Bd4 {[%clk 0:01:07.2]} 16...
Nc6 {[%clk 0:01:09.6]} 17. Bxf6 {[%clk 0:00:56.7]} 17... gxf6 {[%clk 0:01:09]}
18. Nxd6+ {[%clk 0:00:55]} 18... Rxd6 {[%clk 0:01:05]} 19. a3 {[%clk 0:00:49.8]}
19... h5 {[%clk 0:01:01.5]} 20. h4 {[%clk 0:00:48.8]} 20... Ne5 {[%clk
0:00:57.7]} 21. Be4 {[%clk 0:00:48.1]} 21... c6 {[%clk 0:00:53.6]} 22. b4 {[%clk
0:00:47.7]} 22... Qb6 {[%clk 0:00:51.6]} 23. Rfb1 {[%clk 0:00:42.4]} 23... Rd2
{[%clk 0:00:45.4]} 24. b5 {[%clk 0:00:40.8]} 24... Qc5 {[%clk 0:00:33.3]} 25.
bxc6 {[%clk 0:00:36]} 25... bxc6 {[%clk 0:00:33.4]} 26. Rb4 {[%clk 0:00:23.4]}
26... Ng4 {[%clk 0:00:26.6]} 27. Rf1 {[%clk 0:00:20.3]} 27... Kc7 {[%clk
0:00:21.1]} 28. Qf3 {[%clk 0:00:17.3]} 28... Re8 {[%clk 0:00:16.9]} 29. Qf4+
{[%clk 0:00:16.2]} 29... Qd6 {[%clk 0:00:16.9]} 30. Qxd6+ {[%clk 0:00:14.3]}
30... Rxd6 {[%clk 0:00:17.1]} 31. Rfb1 {[%clk 0:00:13]} 31... Rd2 {[%clk
0:00:15.6]} 32. Rb7+ {[%clk 0:00:09.9]} 32... Kd6 {[%clk 0:00:15.8]} 33. Bf3
{[%clk 0:00:05]} 33... Nxf2 {[%clk 0:00:13.1]} 34. R7b6 {[%clk 0:00:03]} 34...
Rxc2 {[%clk 0:00:08]} 0-1

[Event "*** Titled Tuesday Blitz"]
[Site "Chess.com"]
[Date "2020.11.10"]
[Round "6"]
[White "Luklei18"]
[Black "PawnEatingZombie"]
[Result "1-0"]
[WhiteElo "2300"]
[BlackElo "2165"]
[TimeControl "180+1"]
[EndTime "11:09:59 PST"]
[Termination "Luklei18 won on time"]

1. e4 {[%clk 0:03:00.8]} 1... c6 {[%clk 0:02:59.8]} 2. Nc3 {[%clk 0:03:00.3]}
2... d5 {[%clk 0:03:00.7]} 3. Qe2 {[%clk 0:03:00.5]} 3... dxe4 {[%clk
0:02:41.9]} 4. Nxe4 {[%clk 0:03:00.5]} 4... Bf5 {[%clk 0:02:34.1]} 5. d3 {[%clk
0:03:00.4]} 5... e6 {[%clk 0:02:29.3]} 6. g4 {[%clk 0:02:59.8]} 6... Bg6 {[%clk
0:02:28.9]} 7. Bg2 {[%clk 0:02:54.9]} 7... Be7 {[%clk 0:02:25.5]} 8. h4 {[%clk
0:02:45.6]} 8... Bxh4 {[%clk 0:02:14.8]} 9. Rxh4 {[%clk 0:01:25.3]} 9... Qxh4
{[%clk 0:02:13]} 10. Nd6+ {[%clk 0:01:25.6]} 10... Kf8 {[%clk 0:02:04.1]} 11.
Bf4 {[%clk 0:01:17.9]} 11... Qe7 {[%clk 0:01:26.7]} 12. O-O-O {[%clk 0:00:58.1]}
12... Nf6 {[%clk 0:01:24.7]} 13. Nc4 {[%clk 0:00:33]} 13... Ne8 {[%clk
0:01:24.2]} 14. Nf3 {[%clk 0:00:27.1]} 14... Nd7 {[%clk 0:01:21.7]} 15. Qd2
{[%clk 0:00:15.1]} 15... h5 {[%clk 0:00:39.6]} 16. Rh1 {[%clk 0:00:14.5]} 16...
Kg8 {[%clk 0:00:38.5]} 17. Nfe5 {[%clk 0:00:10.5]} 17... Nxe5 {[%clk 0:00:37.3]}
18. Nxe5 {[%clk 0:00:11.4]} 18... hxg4 {[%clk 0:00:32.1]} 19. Nxg6 {[%clk
0:00:11.3]} 19... Rxh1+ {[%clk 0:00:29.9]} 20. Bxh1 {[%clk 0:00:12.2]} 20...
fxg6 {[%clk 0:00:29.4]} 21. Bg5 {[%clk 0:00:09.8]} 21... Nf6 {[%clk 0:00:29.2]}
22. Be4 {[%clk 0:00:09.8]} 22... Qf7 {[%clk 0:00:27.7]} 23. Bg2 {[%clk
0:00:09.6]} 23... Nh7 {[%clk 0:00:16.2]} 24. Bf4 {[%clk 0:00:09.2]} 24... Rf8
{[%clk 0:00:15.3]} 25. Bg3 {[%clk 0:00:09.9]} 25... Nf6 {[%clk 0:00:09.9]} 26.
Qa5 {[%clk 0:00:10.5]} 26... b6 {[%clk 0:00:07.8]} 27. Qc3 {[%clk 0:00:09.3]}
27... Nd5 {[%clk 0:00:07.6]} 28. Qxc6 {[%clk 0:00:08.4]} 28... Nf4 {[%clk
0:00:07.6]} 29. Bf1 {[%clk 0:00:05.8]} 29... e5 {[%clk 0:00:06.2]} 30. Qe4
{[%clk 0:00:06.3]} 30... Qf5 {[%clk 0:00:05.8]} 31. Qc4+ {[%clk 0:00:06.4]}
31... Kh7 {[%clk 0:00:05.1]} 32. a4 {[%clk 0:00:07]} 32... Nh5 {[%clk 0:00:03]}
33. Be2 {[%clk 0:00:05.6]} 33... Nxg3 {[%clk 0:00:03]} 34. fxg3 {[%clk
0:00:06.5]} 34... Qg5+ {[%clk 0:00:01.8]} 35. Kb1 {[%clk 0:00:04.8]} 35... Rf2
{[%clk 0:00:02.3]} 36. Bxg4 {[%clk 0:00:04.9]} 1-0

[Event "*** Titled Tuesday Blitz"]
[Site "Chess.com"]
[Date "2020.11.10"]
[Round "6"]
[White "thedjoker98"]
[Black "Funo09"]
[Result "0-1"]
[WhiteElo "2576"]
[BlackElo "2816"]
[TimeControl "180+1"]
[EndTime "11:10:00 PST"]
[Termination "Funo09 won by checkmate"]

1. d4 {[%clk 0:03:00.9]} 1... Nf6 {[%clk 0:02:57.1]} 2. c4 {[%clk 0:03:00.6]}
2... Nc6 {[%clk 0:02:57]} 3. Nf3 {[%clk 0:03:00]} 3... e6 {[%clk 0:02:56]} 4.
Nc3 {[%clk 0:03:00.3]} 4... Bb4 {[%clk 0:02:56.4]} 5. Qc2 {[%clk 0:03:00.6]}
5... O-O {[%clk 0:02:56.5]} 6. g3 {[%clk 0:02:58.7]} 6... d6 {[%clk 0:02:55.9]}
7. a3 {[%clk 0:02:58.5]} 7... Bxc3+ {[%clk 0:02:55.2]} 8. Qxc3 {[%clk
0:02:59.4]} 8... Qe7 {[%clk 0:02:55.2]} 9. Bg2 {[%clk 0:02:59]} 9... e5 {[%clk
0:02:55.7]} 10. dxe5 {[%clk 0:02:59.9]} 10... Nxe5 {[%clk 0:02:55.3]} 11. Nxe5
{[%clk 0:02:59.5]} 11... dxe5 {[%clk 0:02:56.2]} 12. O-O {[%clk 0:02:55.9]}
12... c6 {[%clk 0:02:56.7]} 13. b3 {[%clk 0:02:54.6]} 13... Bf5 {[%clk
0:02:56.5]} 14. Bb2 {[%clk 0:02:54.3]} 14... Rfe8 {[%clk 0:02:56.9]} 15. Rfd1
{[%clk 0:02:52.5]} 15... h6 {[%clk 0:02:55.5]} 16. h3 {[%clk 0:02:48.7]} 16...
Rad8 {[%clk 0:02:54.5]} 17. Kh2 {[%clk 0:02:48.1]} 17... Nd7 {[%clk 0:02:42.1]}
18. Rd2 {[%clk 0:02:40.1]} 18... Nf8 {[%clk 0:02:41.5]} 19. Rad1 {[%clk
0:02:39.2]} 19... f6 {[%clk 0:02:41.2]} 20. b4 {[%clk 0:02:19.1]} 20... Rxd2
{[%clk 0:02:32.3]} 21. Rxd2 {[%clk 0:02:18.8]} 21... Rd8 {[%clk 0:02:32.4]} 22.
a4 {[%clk 0:02:13.7]} 22... Rxd2 {[%clk 0:02:29.5]} 23. Qxd2 {[%clk 0:02:13.1]}
23... Bd7 {[%clk 0:02:29.9]} 24. Qc3 {[%clk 0:01:45]} 24... Ne6 {[%clk
0:02:27.9]} 25. e3 {[%clk 0:01:45]} 25... Ng5 {[%clk 0:02:26.7]} 26. b5 {[%clk
0:01:43.3]} 26... Ne6 {[%clk 0:02:24.2]} 27. Ba3 {[%clk 0:01:42.1]} 27... Qd8
{[%clk 0:02:23.7]} 28. a5 {[%clk 0:01:33]} 28... a6 {[%clk 0:02:18.1]} 29. bxa6
{[%clk 0:01:31.8]} 29... bxa6 {[%clk 0:02:19]} 30. Bd6 {[%clk 0:01:30.8]} 30...
Be8 {[%clk 0:02:14.7]} 31. c5 {[%clk 0:01:29.3]} 31... Nc7 {[%clk 0:02:10.6]}
32. Bf1 {[%clk 0:01:25.4]} 32... Nb5 {[%clk 0:02:10.1]} 33. Bxb5 {[%clk
0:01:23.5]} 33... cxb5 {[%clk 0:02:11]} 34. Qb4 {[%clk 0:01:06.3]} 34... Bc6
{[%clk 0:02:09.2]} 35. Qg4 {[%clk 0:00:57.2]} 35... Qe8 {[%clk 0:02:07.2]} 36.
e4 {[%clk 0:00:49.8]} 36... Bd7 {[%clk 0:02:01.5]} 37. Qd1 {[%clk 0:00:47.4]}
37... Bc6 {[%clk 0:01:55.2]} 38. Qg4 {[%clk 0:00:46.8]} 38... h5 {[%clk
0:01:50.6]} 39. Qe2 {[%clk 0:00:43.7]} 39... Qe6 {[%clk 0:01:42.7]} 40. f3
{[%clk 0:00:37.7]} 40... Kh7 {[%clk 0:01:39.6]} 41. g4 {[%clk 0:00:37.6]} 41...
h4 {[%clk 0:01:36]} 42. Qf2 {[%clk 0:00:35.9]} 42... g5 {[%clk 0:01:36.1]} 43.
Qe2 {[%clk 0:00:31.7]} 43... Qc4 {[%clk 0:01:33.7]} 44. Qd2 {[%clk 0:00:27]}
44... b4 {[%clk 0:01:31.6]} 45. Be7 {[%clk 0:00:26.5]} 45... b3 {[%clk
0:01:28.9]} 46. Bxf6 {[%clk 0:00:19.5]} 46... Qf1 {[%clk 0:00:36]} 47. Qxg5
{[%clk 0:00:17.2]} 47... Qf2+ {[%clk 0:00:33.7]} 48. Kh1 {[%clk 0:00:17.5]}
48... Qxf3+ {[%clk 0:00:27.7]} 49. Kg1 {[%clk 0:00:17.6]} 49... Qg3+ {[%clk
0:00:26.9]} 50. Kf1 {[%clk 0:00:15.6]} 50... Bb5# {[%clk 0:00:26.6]} 0-1

[Event "*** Titled Tuesday Blitz"]
[Site "Chess.com"]
[Date "2020.11.10"]
[Round "6"]
[White "Volodar_Murzin"]
[Black "03revilo"]
[Result "1-0"]
[WhiteElo "2554"]
[BlackElo "2358"]
[TimeControl "180+1"]
[EndTime "11:10:01 PST"]
[Termination "Volodar_Murzin won by resignation"]

1. d4 {[%clk 0:03:00.9]} 1... Nf6 {[%clk 0:02:59.6]} 2. Nf3 {[%clk 0:02:59.9]}
2... e6 {[%clk 0:02:59.6]} 3. Bg5 {[%clk 0:02:50.9]} 3... d5 {[%clk 0:02:59]} 4.
Nbd2 {[%clk 0:02:48.8]} 4... Be7 {[%clk 0:02:59.2]} 5. e3 {[%clk 0:02:48.3]}
5... Nbd7 {[%clk 0:02:59.5]} 6. c4 {[%clk 0:02:47.8]} 6... c6 {[%clk 0:02:57.7]}
7. Bd3 {[%clk 0:02:40.2]} 7... O-O {[%clk 0:02:56.6]} 8. O-O {[%clk 0:02:38.4]}
8... dxc4 {[%clk 0:02:52.6]} 9. Nxc4 {[%clk 0:02:35.1]} 9... b5 {[%clk
0:02:52.9]} 10. Nce5 {[%clk 0:02:33.4]} 10... Bb7 {[%clk 0:02:50.6]} 11. Rc1
{[%clk 0:02:28.9]} 11... Rc8 {[%clk 0:02:49.7]} 12. Nxd7 {[%clk 0:02:14.4]}
12... Nxd7 {[%clk 0:02:36.6]} 13. Bxe7 {[%clk 0:02:12.8]} 13... Qxe7 {[%clk
0:02:37.5]} 14. Nd2 {[%clk 0:01:42.5]} 14... a6 {[%clk 0:02:31]} 15. Nb3 {[%clk
0:01:32.3]} 15... c5 {[%clk 0:02:20.5]} 16. dxc5 {[%clk 0:01:28.1]} 16... Nxc5
{[%clk 0:02:20.6]} 17. Bxh7+ {[%clk 0:01:16.9]} 17... Kxh7 {[%clk 0:02:13.8]}
18. Qh5+ {[%clk 0:01:16.7]} 18... Kg8 {[%clk 0:02:12.9]} 19. Rxc5 {[%clk
0:01:12.6]} 19... Bd5 {[%clk 0:01:50.4]} 20. Rfc1 {[%clk 0:01:07.4]} 20... Rxc5
{[%clk 0:01:47.5]} 21. Nxc5 {[%clk 0:01:08.3]} 21... Rc8 {[%clk 0:01:35.8]} 22.
b4 {[%clk 0:01:05.4]} 22... Bxa2 {[%clk 0:01:21]} 23. Ra1 {[%clk 0:01:01]} 23...
Bd5 {[%clk 0:01:14.4]} 24. Rxa6 {[%clk 0:00:46.3]} 24... Qb7 {[%clk 0:00:29.6]}
25. Ra1 {[%clk 0:00:36.1]} 25... Ra8 {[%clk 0:00:24.7]} 26. Rd1 {[%clk
0:00:24.5]} 26... Qc6 {[%clk 0:00:19.7]} 27. Qg4 {[%clk 0:00:20.8]} 27... Ra2
{[%clk 0:00:18.5]} 28. e4 {[%clk 0:00:18.5]} 28... f5 {[%clk 0:00:08.8]} 29.
exd5 {[%clk 0:00:14.8]} 29... Qd6 {[%clk 0:00:08.9]} 30. Qf3 {[%clk 0:00:09.9]}
30... exd5 {[%clk 0:00:05.9]} 31. g3 {[%clk 0:00:09.1]} 31... d4 {[%clk
0:00:05.6]} 32. Qb3+ {[%clk 0:00:08.7]} 32... Kh7 {[%clk 0:00:05]} 33. Qxa2
{[%clk 0:00:08.8]} 33... f4 {[%clk 0:00:05.9]} 34. Qc2+ {[%clk 0:00:08.4]} 34...
Kh8 {[%clk 0:00:05.4]} 35. Qd3 {[%clk 0:00:09.3]} 35... Qf6 {[%clk 0:00:05]} 36.
Kg2 {[%clk 0:00:09.4]} 36... fxg3 {[%clk 0:00:04.1]} 37. hxg3 {[%clk 0:00:10.3]}
37... Qe5 {[%clk 0:00:02.6]} 38. Rh1+ {[%clk 0:00:09.3]} 38... Qh5 {[%clk
0:00:03.5]} 39. Rxh5+ {[%clk 0:00:09.1]} 1-0

[Event "*** Titled Tuesday Blitz"]
[Site "Chess.com"]
[Date "2020.11.10"]
[Round "6"]
[White "malakismayil"]
[Black "AttractiveMustard"]
[Result "0-1"]
[WhiteElo "2231"]
[BlackElo "2396"]
[TimeControl "180+1"]
[EndTime "11:10:01 PST"]
[Termination "AttractiveMustard won by resignation"]

1. e4 {[%clk 0:03:00.9]} 1... c5 {[%clk 0:02:58]} 2. Nf3 {[%clk 0:03:01.1]} 2...
Nc6 {[%clk 0:02:57.6]} 3. Bb5 {[%clk 0:03:01.3]} 3... d6 {[%clk 0:02:57.4]} 4.
c3 {[%clk 0:03:00.7]} 4... Nf6 {[%clk 0:02:52.5]} 5. Qe2 {[%clk 0:02:58.5]} 5...
Bd7 {[%clk 0:02:50.4]} 6. d4 {[%clk 0:02:54.4]} 6... cxd4 {[%clk 0:02:14.9]} 7.
cxd4 {[%clk 0:02:55]} 7... d5 {[%clk 0:02:15]} 8. e5 {[%clk 0:02:50]} 8... Ne4
{[%clk 0:02:13.9]} 9. O-O {[%clk 0:02:46.7]} 9... e6 {[%clk 0:02:10.5]} 10. Bd3
{[%clk 0:02:42.8]} 10... Be7 {[%clk 0:02:08]} 11. Bxe4 {[%clk 0:02:39.8]} 11...
dxe4 {[%clk 0:02:07.8]} 12. Qxe4 {[%clk 0:02:40.7]} 12... Nb4 {[%clk 0:02:04.5]}
13. a3 {[%clk 0:02:32.6]} 13... Bc6 {[%clk 0:02:02.6]} 14. Qe2 {[%clk
0:02:27.1]} 14... Bxf3 {[%clk 0:01:52.2]} 15. gxf3 {[%clk 0:02:09.5]} 15... Nd5
{[%clk 0:01:51.2]} 16. Nc3 {[%clk 0:02:05.7]} 16... O-O {[%clk 0:01:48.1]} 17.
Kh1 {[%clk 0:02:01.8]} 17... Rc8 {[%clk 0:01:47.2]} 18. Ne4 {[%clk 0:01:56]}
18... Qc7 {[%clk 0:01:36]} 19. Bd2 {[%clk 0:01:46.8]} 19... Qc4 {[%clk
0:01:32.3]} 20. Qxc4 {[%clk 0:01:31.9]} 20... Rxc4 {[%clk 0:01:33.2]} 21. Bc3
{[%clk 0:01:30.2]} 21... Rfc8 {[%clk 0:01:23.9]} 22. Rad1 {[%clk 0:01:25.1]}
22... Kf8 {[%clk 0:01:22.7]} 23. Rd3 {[%clk 0:01:18.5]} 23... Ke8 {[%clk
0:01:19.5]} 24. Rg1 {[%clk 0:01:16.8]} 24... g6 {[%clk 0:01:18.9]} 25. Rgd1
{[%clk 0:01:16.3]} 25... b5 {[%clk 0:01:11]} 26. Kg1 {[%clk 0:01:07.9]} 26...
Kd7 {[%clk 0:01:05.8]} 27. Kf1 {[%clk 0:01:02.7]} 27... Kc6 {[%clk 0:01:05.6]}
28. R3d2 {[%clk 0:00:59]} 28... Kb6 {[%clk 0:01:04]} 29. Ke2 {[%clk 0:00:56.6]}
29... a5 {[%clk 0:01:03.6]} 30. Kf1 {[%clk 0:00:32.4]} 30... b4 {[%clk
0:01:01.8]} 31. axb4 {[%clk 0:00:32.4]} 31... axb4 {[%clk 0:01:02.7]} 32. b3
{[%clk 0:00:32.7]} 32... Rxc3 {[%clk 0:00:56]} 33. Nxc3 {[%clk 0:00:31.9]} 33...
bxc3 {[%clk 0:00:51.7]} 34. Rc2 {[%clk 0:00:31.2]} 34... Nb4 {[%clk 0:00:50.1]}
35. Rcc1 {[%clk 0:00:30.8]} 35... c2 {[%clk 0:00:44.7]} 36. Rd2 {[%clk
0:00:30.6]} 36... Bg5 {[%clk 0:00:44.7]} 37. f4 {[%clk 0:00:28.7]} 37... Bxf4
{[%clk 0:00:44.1]} 38. Ke2 {[%clk 0:00:29.6]} 38... Rc3 {[%clk 0:00:32.3]} 39.
Ke1 {[%clk 0:00:22]} 39... Kc6 {[%clk 0:00:25.3]} 40. Ke2 {[%clk 0:00:21.1]}
40... Kd5 {[%clk 0:00:25.4]} 41. Ke1 {[%clk 0:00:20.3]} 41... Bxd2+ {[%clk
0:00:24]} 42. Kxd2 {[%clk 0:00:21.2]} 42... Rd3+ {[%clk 0:00:23.5]} 43. Ke2
{[%clk 0:00:20.6]} 43... Kxd4 {[%clk 0:00:23.8]} 44. f3 {[%clk 0:00:20.9]} 44...
Kc3 {[%clk 0:00:23.5]} 45. f4 {[%clk 0:00:20.1]} 45... Kb2 {[%clk 0:00:22.7]}
46. Re1 {[%clk 0:00:17.4]} 46... c1=Q {[%clk 0:00:22.8]} 47. Rxc1 {[%clk
0:00:17.6]} 47... Kxc1 {[%clk 0:00:23.7]} 0-1

[Event "*** Titled Tuesday Blitz"]
[Site "Chess.com"]
[Date "2020.11.10"]
[Round "6"]
[White "Malysch"]
[Black "AliKa2810"]
[Result "0-1"]
[WhiteElo "2408"]
[BlackElo "2569"]
[TimeControl "180+1"]
[EndTime "11:10:02 PST"]
[Termination "AliKa2810 won by resignation"]

1. e4 {[%clk 0:02:59]} 1... c6 {[%clk 0:02:59.5]} 2. d4 {[%clk 0:02:58.3]} 2...
d5 {[%clk 0:03:00.1]} 3. exd5 {[%clk 0:02:57.9]} 3... cxd5 {[%clk 0:02:59.9]} 4.
Bd3 {[%clk 0:02:58.5]} 4... Nc6 {[%clk 0:02:58.6]} 5. c3 {[%clk 0:02:58.2]} 5...
Qc7 {[%clk 0:02:56.2]} 6. Ne2 {[%clk 0:02:57.1]} 6... Nf6 {[%clk 0:02:53.3]} 7.
O-O {[%clk 0:02:55.4]} 7... Bg4 {[%clk 0:02:48.4]} 8. Qe1 {[%clk 0:02:54.2]}
8... e6 {[%clk 0:02:46.5]} 9. f3 {[%clk 0:02:53.5]} 9... Bh5 {[%clk 0:02:45.9]}
10. Qh4 {[%clk 0:02:53.4]} 10... Be7 {[%clk 0:01:57.3]} 11. Nf4 {[%clk
0:02:48.9]} 11... g6 {[%clk 0:01:31.3]} 12. g4 {[%clk 0:01:52.2]} 12... Nxg4
{[%clk 0:01:29.1]} 13. Qg3 {[%clk 0:01:51.7]} 13... Nge5 {[%clk 0:00:25.2]} 14.
Nxh5 {[%clk 0:01:23.3]} 14... gxh5 {[%clk 0:00:26.1]} 15. dxe5 {[%clk
0:01:22.9]} 15... O-O-O {[%clk 0:00:25.1]} 16. Kh1 {[%clk 0:01:21.9]} 16... Qxe5
{[%clk 0:00:23.4]} 17. Qxe5 {[%clk 0:00:43.8]} 17... Nxe5 {[%clk 0:00:24.3]} 18.
Bc2 {[%clk 0:00:43.5]} 18... h4 {[%clk 0:00:23.8]} 19. Nd2 {[%clk 0:00:37.8]}
19... h5 {[%clk 0:00:22.3]} 20. Nb3 {[%clk 0:00:37.2]} 20... Rhg8 {[%clk
0:00:22]} 21. Nd4 {[%clk 0:00:33.7]} 21... Bd6 {[%clk 0:00:22.3]} 22. Bf4 {[%clk
0:00:30.6]} 22... h3 {[%clk 0:00:19.7]} 23. Rae1 {[%clk 0:00:24.8]} 23... Nc4
{[%clk 0:00:14.7]} 24. Bxd6 {[%clk 0:00:23.4]} 24... Rxd6 {[%clk 0:00:15.4]} 25.
b3 {[%clk 0:00:21.4]} 25... Nb6 {[%clk 0:00:08.1]} 26. Rg1 {[%clk 0:00:21.1]}
26... Rdd8 {[%clk 0:00:08.3]} 27. Rg4 {[%clk 0:00:21.1]} 27... hxg4 {[%clk
0:00:07.8]} 28. fxg4 {[%clk 0:00:19.9]} 28... Rxg4 {[%clk 0:00:07.3]} 29. Nf3
{[%clk 0:00:16.4]} 29... Rdg8 {[%clk 0:00:07.2]} 30. Ne5 {[%clk 0:00:15.1]}
30... R4g7 {[%clk 0:00:07.4]} 31. Rf1 {[%clk 0:00:13.8]} 31... Nd7 {[%clk
0:00:07.4]} 32. Nxf7 {[%clk 0:00:13]} 32... Kc7 {[%clk 0:00:07.6]} 33. Nh6
{[%clk 0:00:09.4]} 33... Rh8 {[%clk 0:00:07.9]} 34. Rf6 {[%clk 0:00:05.6]} 34...
Nxf6 {[%clk 0:00:07.1]} 35. Nf5 {[%clk 0:00:04.6]} 35... exf5 {[%clk 0:00:07]}
36. Bxf5 {[%clk 0:00:05.5]} 36... Re8 {[%clk 0:00:05.9]} 37. Bxh3 {[%clk
0:00:06.4]} 37... Re1+ {[%clk 0:00:05.8]} 0-1

[Event "*** Titled Tuesday Blitz"]
[Site "Chess.com"]
[Date "2020.11.10"]
[Round "6"]
[White "horripile"]
[Black "Brave_spirit12"]
[Result "1-0"]
[WhiteElo "2674"]
[BlackElo "2495"]
[TimeControl "180+1"]
[EndTime "11:10:03 PST"]
[Termination "horripile won by checkmate"]

1. e4 {[%clk 0:03:00.9]} 1... e6 {[%clk 0:02:55.7]} 2. d4 {[%clk 0:03:00.7]}
2... d5 {[%clk 0:02:55.6]} 3. Nd2 {[%clk 0:03:00.8]} 3... c5 {[%clk 0:02:53.9]}
4. Ngf3 {[%clk 0:02:59.7]} 4... Nc6 {[%clk 0:02:53.3]} 5. exd5 {[%clk
0:02:58.4]} 5... exd5 {[%clk 0:02:54.2]} 6. Bb5 {[%clk 0:02:58.1]} 6... Bd6
{[%clk 0:02:54]} 7. O-O {[%clk 0:02:57.6]} 7... Ne7 {[%clk 0:02:53.2]} 8. dxc5
{[%clk 0:02:57.7]} 8... Bxc5 {[%clk 0:02:52.9]} 9. Nb3 {[%clk 0:02:58]} 9... Bd6
{[%clk 0:02:52.9]} 10. Nfd4 {[%clk 0:02:55]} 10... O-O {[%clk 0:02:51.8]} 11. c3
{[%clk 0:02:54.1]} 11... Ne5 {[%clk 0:02:44.3]} 12. Re1 {[%clk 0:02:52.4]} 12...
Bg4 {[%clk 0:02:42.3]} 13. Be2 {[%clk 0:02:51.3]} 13... Bxe2 {[%clk 0:02:40.5]}
14. Rxe2 {[%clk 0:02:50.9]} 14... Re8 {[%clk 0:02:40.4]} 15. Bf4 {[%clk
0:02:50.8]} 15... N7c6 {[%clk 0:02:39.4]} 16. Bxe5 {[%clk 0:02:49.7]} 16... Bxe5
{[%clk 0:02:37.6]} 17. Nf3 {[%clk 0:02:47.5]} 17... Qd6 {[%clk 0:02:29.9]} 18.
Qd3 {[%clk 0:02:46.2]} 18... Re7 {[%clk 0:02:23.7]} 19. Rae1 {[%clk 0:02:42.9]}
19... Rae8 {[%clk 0:02:23.6]} 20. g3 {[%clk 0:02:43.2]} 20... g6 {[%clk
0:02:18.9]} 21. a4 {[%clk 0:02:41.3]} 21... h5 {[%clk 0:02:02.3]} 22. Kg2 {[%clk
0:02:39.5]} 22... Kg7 {[%clk 0:01:57.6]} 23. Rd1 {[%clk 0:02:38.3]} 23... Rd8
{[%clk 0:01:49]} 24. Qb5 {[%clk 0:02:36.2]} 24... a6 {[%clk 0:01:44.5]} 25. Qc5
{[%clk 0:02:33.9]} 25... Qxc5 {[%clk 0:01:29.6]} 26. Nxc5 {[%clk 0:02:34.8]}
26... Bd6 {[%clk 0:01:26.6]} 27. Rxe7 {[%clk 0:02:34]} 27... Bxe7 {[%clk
0:01:27.5]} 28. Nb3 {[%clk 0:02:22.3]} 28... Bf6 {[%clk 0:01:22.7]} 29. h3
{[%clk 0:02:20.4]} 29... b5 {[%clk 0:01:15.3]} 30. axb5 {[%clk 0:02:19.4]} 30...
axb5 {[%clk 0:01:16.2]} 31. Nbd4 {[%clk 0:02:15.4]} 31... Ne7 {[%clk 0:00:31.3]}
32. g4 {[%clk 0:02:10.9]} 32... hxg4 {[%clk 0:00:30.7]} 33. hxg4 {[%clk
0:02:11.8]} 33... g5 {[%clk 0:00:31.3]} 34. b3 {[%clk 0:02:04.1]} 34... Rb8
{[%clk 0:00:27.2]} 35. Rh1 {[%clk 0:01:56.1]} 35... b4 {[%clk 0:00:25.3]} 36.
cxb4 {[%clk 0:01:56.2]} 36... Rxb4 {[%clk 0:00:26.2]} 37. Rd1 {[%clk 0:01:56.4]}
37... Kg6 {[%clk 0:00:18]} 38. Rd3 {[%clk 0:01:55.7]} 38... Nc8 {[%clk
0:00:11.5]} 39. Kh3 {[%clk 0:01:54.1]} 39... Nd6 {[%clk 0:00:11]} 40. Nc6 {[%clk
0:01:53]} 40... Rb5 {[%clk 0:00:07.2]} 41. Nfe5+ {[%clk 0:01:42.3]} 41... Bxe5
{[%clk 0:00:06.7]} 42. Nxe5+ {[%clk 0:01:42.4]} 42... Kf6 {[%clk 0:00:07.2]} 43.
Nf3 {[%clk 0:01:41]} 43... Ne4 {[%clk 0:00:07.2]} 44. Kg2 {[%clk 0:01:41.5]}
44... Ke7 {[%clk 0:00:05.7]} 45. Nd4 {[%clk 0:01:39]} 45... Rb6 {[%clk
0:00:06.1]} 46. f3 {[%clk 0:01:39.1]} 46... Nc5 {[%clk 0:00:05.6]} 47. Rc3
{[%clk 0:01:39.1]} 47... Ne6 {[%clk 0:00:04.8]} 48. Nf5+ {[%clk 0:01:38.6]}
48... Kf6 {[%clk 0:00:04.9]} 49. Kf2 {[%clk 0:01:36.9]} 49... Nf4 {[%clk
0:00:05]} 50. Ke3 {[%clk 0:01:33.2]} 50... Re6+ {[%clk 0:00:04.6]} 51. Kf2
{[%clk 0:01:29]} 51... Re2+ {[%clk 0:00:04.8]} 52. Kf1 {[%clk 0:01:29.3]} 52...
Rb2 {[%clk 0:00:04.2]} 53. Re3 {[%clk 0:01:22.5]} 53... Nh3 {[%clk 0:00:04.6]}
54. Nd4 {[%clk 0:01:20.4]} 54... Nf4 {[%clk 0:00:04.8]} 55. Rc3 {[%clk
0:01:18.1]} 55... Rb1+ {[%clk 0:00:05.3]} 56. Kf2 {[%clk 0:01:17.4]} 56... Rb2+
{[%clk 0:00:06.2]} 57. Rc2 {[%clk 0:01:16.6]} 57... Rxc2+ {[%clk 0:00:05.5]} 58.
Nxc2 {[%clk 0:01:16.1]} 58... Ke5 {[%clk 0:00:06.2]} 59. Ke3 {[%clk 0:01:16.3]}
59... Ng2+ {[%clk 0:00:06.1]} 60. Kd2 {[%clk 0:01:15.6]} 60... Nf4 {[%clk
0:00:06.5]} 61. b4 {[%clk 0:01:14.9]} 61... Ne6 {[%clk 0:00:06.9]} 62. Ne1
{[%clk 0:01:12.5]} 62... Kf4 {[%clk 0:00:07.2]} 63. Ke2 {[%clk 0:01:12.6]} 63...
Nd4+ {[%clk 0:00:07.2]} 64. Kf2 {[%clk 0:01:12.7]} 64... Nb5 {[%clk 0:00:07.3]}
65. Nd3# {[%clk 0:01:10.6]} 1-0